[Event "Early-Titled-Tuesday-Blitz-January-23-2024"]
[Site "Chess.com"]
[Date "2024.01.23"]
[Round "5"]
[White "FM_VS99"]
[Black "supereagles1201"]
[Result "1/2-1/2"]
[WhiteElo "2533"]
[BlackElo "2363"]
[TimeControl "180+1"]
[EndTime "8:56:35 PST"]
[Termination "Game drawn - insufficient material"]

1. d4 {[%clk 0:03:00.9]} 1... d5 {[%clk 0:02:59.7]} 2. Nf3 {[%clk 0:03:01]} 2...
Nf6 {[%clk 0:02:58.5]} 3. c4 {[%clk 0:03:00.9]} 3... c6 {[%clk 0:02:58.8]} 4.
cxd5 {[%clk 0:02:59.2]} 4... cxd5 {[%clk 0:02:58.2]} 5. Nc3 {[%clk 0:02:59.8]}
5... Nc6 {[%clk 0:02:58.4]} 6. Bf4 {[%clk 0:03:00.3]} 6... Bf5 {[%clk
0:02:58.9]} 7. e3 {[%clk 0:03:00.1]} 7... e6 {[%clk 0:02:59.1]} 8. Rc1 {[%clk
0:02:59.2]} 8... Bd6 {[%clk 0:02:56.7]} 9. Qb3 {[%clk 0:02:50]} 9... O-O {[%clk
0:02:52.7]} 10. Qxb7 {[%clk 0:02:34.3]} 10... Na5 {[%clk 0:02:47.7]} 11. Qa6
{[%clk 0:02:26.4]} 11... Bxf4 {[%clk 0:02:46.8]} 12. exf4 {[%clk 0:02:26]} 12...
Rb8 {[%clk 0:02:14.8]} 13. Bb5 {[%clk 0:02:12.6]} 13... Nc4 {[%clk 0:01:51.2]}
14. O-O {[%clk 0:01:39.3]} 14... Nxb2 {[%clk 0:01:49.8]} 15. Qxa7 {[%clk
0:01:09]} 15... Ra8 {[%clk 0:01:35.1]} 16. Qc5 {[%clk 0:01:00.4]} 16... Nd3
{[%clk 0:01:26.8]} 17. Bxd3 {[%clk 0:00:59]} 17... Bxd3 {[%clk 0:01:27.7]} 18.
Rfd1 {[%clk 0:00:59.2]} 18... Bc4 {[%clk 0:01:25.9]} 19. a4 {[%clk 0:00:52.8]}
19... Bb3 {[%clk 0:01:17.9]} 20. Re1 {[%clk 0:00:49.4]} 20... Bxa4 {[%clk
0:01:18.6]} 21. f5 {[%clk 0:00:40.4]} 21... exf5 {[%clk 0:01:15.8]} 22. Re5
{[%clk 0:00:36.5]} 22... Bb3 {[%clk 0:01:13.6]} 23. Rxf5 {[%clk 0:00:33.2]}
23... Qa5 {[%clk 0:01:05.2]} 24. h3 {[%clk 0:00:27.7]} 24... Rfc8 {[%clk
0:01:00.2]} 25. Qxa5 {[%clk 0:00:20]} 25... Rxa5 {[%clk 0:01:01.1]} 26. Nd2
{[%clk 0:00:13.1]} 26... Bd1 {[%clk 0:00:51.4]} 27. Rxd1 {[%clk 0:00:10]} 27...
Rxc3 {[%clk 0:00:51]} 28. Nf3 {[%clk 0:00:10.4]} 28... Rca3 {[%clk 0:00:46.8]}
29. Re1 {[%clk 0:00:09.7]} 29... Ra1 {[%clk 0:00:46.7]} 30. Rxa1 {[%clk
0:00:05.4]} 30... Rxa1+ {[%clk 0:00:47.6]} 31. Kh2 {[%clk 0:00:06.2]} 31... Ra2
{[%clk 0:00:44.7]} 32. Kg3 {[%clk 0:00:04.8]} 32... Ne4+ {[%clk 0:00:43.9]} 33.
Kh2 {[%clk 0:00:03.2]} 33... Nf6 {[%clk 0:00:36.8]} 34. Kg1 {[%clk 0:00:03.6]}
34... Kf8 {[%clk 0:00:33.2]} 35. g4 {[%clk 0:00:03.4]} 35... h6 {[%clk
0:00:32.4]} 36. g5 {[%clk 0:00:03]} 36... hxg5 {[%clk 0:00:31.8]} 37. Nxg5
{[%clk 0:00:03.8]} 37... Rd2 {[%clk 0:00:28.5]} 38. Nf3 {[%clk 0:00:03.4]} 38...
Rd1+ {[%clk 0:00:28.1]} 39. Kg2 {[%clk 0:00:03.7]} 39... Ke7 {[%clk 0:00:27.6]}
40. h4 {[%clk 0:00:04.2]} 40... g6 {[%clk 0:00:26.4]} 41. Re5+ {[%clk
0:00:04.3]} 41... Kf8 {[%clk 0:00:21.9]} 42. Rg5 {[%clk 0:00:03.4]} 42... Ke7
{[%clk 0:00:19.3]} 43. Re5+ {[%clk 0:00:03.5]} 43... Kd6 {[%clk 0:00:19.5]} 44.
Ng5 {[%clk 0:00:01.9]} 44... Rxd4 {[%clk 0:00:19.3]} 45. Nxf7+ {[%clk
0:00:02.7]} 45... Kd7 {[%clk 0:00:19.2]} 46. Kg3 {[%clk 0:00:03.3]} 46... Rg4+
{[%clk 0:00:18.4]} 47. Kh3 {[%clk 0:00:03.5]} 47... Rf4 {[%clk 0:00:19]} 48. Kg3
{[%clk 0:00:03.9]} 48... Rg4+ {[%clk 0:00:19.3]} 49. Kh3 {[%clk 0:00:04.2]}
49... Re4 {[%clk 0:00:19.9]} 50. Rxe4 {[%clk 0:00:04]} 50... Nxe4 {[%clk
0:00:20.2]} 51. Ne5+ {[%clk 0:00:04.7]} 51... Ke6 {[%clk 0:00:19.4]} 52. Nd3
{[%clk 0:00:05.3]} 52... Kf5 {[%clk 0:00:18.7]} 53. f3 {[%clk 0:00:05.6]} 53...
Nf6 {[%clk 0:00:18.5]} 54. Kg3 {[%clk 0:00:06]} 54... Nh5+ {[%clk 0:00:18.5]}
55. Kf2 {[%clk 0:00:06.4]} 55... Nf4 {[%clk 0:00:18.8]} 56. Nc5 {[%clk
0:00:06.7]} 56... d4 {[%clk 0:00:18.4]} 57. Kg3 {[%clk 0:00:07.2]} 57... d3
{[%clk 0:00:17.8]} 58. Ne4 {[%clk 0:00:06.2]} 58... Nd5 {[%clk 0:00:16.8]} 59.
Kf2 {[%clk 0:00:06.2]} 59... Kf4 {[%clk 0:00:15.9]} 60. Kg2 {[%clk 0:00:05.3]}
60... Ke3 {[%clk 0:00:15.6]} 61. Kg3 {[%clk 0:00:04.9]} 61... d2 {[%clk
0:00:15.5]} 62. Nxd2 {[%clk 0:00:05.4]} 62... Kxd2 {[%clk 0:00:16]} 63. Kg4
{[%clk 0:00:06.1]} 63... Ke3 {[%clk 0:00:14]} 64. Kg5 {[%clk 0:00:06.5]} 64...
Kxf3 {[%clk 0:00:14.2]} 65. Kxg6 {[%clk 0:00:06.8]} 65... Kg4 {[%clk 0:00:14.2]}
66. h5 {[%clk 0:00:07.2]} 66... Nf4+ {[%clk 0:00:14.7]} 67. Kh6 {[%clk
0:00:07.9]} 67... Nxh5 {[%clk 0:00:15.4]} 1/2-1/2

[Event "Early-Titled-Tuesday-Blitz-January-23-2024"]
[Site "Chess.com"]
[Date "2024.01.23"]
[Round "5"]
[White "dirk_da_player"]
[Black "Goffredo_Fofi"]
[Result "1-0"]
[WhiteElo "2388"]
[BlackElo "2536"]
[TimeControl "180+1"]
[EndTime "8:56:39 PST"]
[Termination "dirk_da_player won by resignation"]

1. e4 {[%clk 0:02:44.2]} 1... g6 {[%clk 0:03:00.9]} 2. d4 {[%clk 0:02:43.3]}
2... Bg7 {[%clk 0:03:01.5]} 3. Nc3 {[%clk 0:02:44.2]} 3... c6 {[%clk 0:03:02.1]}
4. Be3 {[%clk 0:02:41.9]} 4... d5 {[%clk 0:03:02.1]} 5. e5 {[%clk 0:02:42.5]}
5... f6 {[%clk 0:03:01.5]} 6. exf6 {[%clk 0:02:33.4]} 6... Nxf6 {[%clk
0:03:02.4]} 7. Nf3 {[%clk 0:02:31.4]} 7... O-O {[%clk 0:02:48.6]} 8. Be2 {[%clk
0:02:07.3]} 8... Ng4 {[%clk 0:02:47.3]} 9. Bg5 {[%clk 0:02:07.6]} 9... Qd6
{[%clk 0:02:30.5]} 10. h3 {[%clk 0:02:04.6]} 10... Nf6 {[%clk 0:02:28.6]} 11.
O-O {[%clk 0:01:59.5]} 11... Nbd7 {[%clk 0:02:27.9]} 12. Bd3 {[%clk 0:01:53.6]}
12... e5 {[%clk 0:02:26.3]} 13. dxe5 {[%clk 0:01:44.8]} 13... Nxe5 {[%clk
0:02:27.2]} 14. Nxe5 {[%clk 0:01:38.4]} 14... Qxe5 {[%clk 0:02:28.1]} 15. Qd2
{[%clk 0:01:39.3]} 15... Nh5 {[%clk 0:01:38.5]} 16. Rae1 {[%clk 0:01:34.5]}
16... Qd4 {[%clk 0:01:38.4]} 17. Be3 {[%clk 0:01:34.9]} 17... Qf6 {[%clk
0:01:28.4]} 18. Bg5 {[%clk 0:01:22.8]} 18... Qd4 {[%clk 0:01:13.8]} 19. Re7
{[%clk 0:01:22.1]} 19... Nf4 {[%clk 0:01:09.2]} 20. Ne2 {[%clk 0:00:55.8]} 20...
Nxe2+ {[%clk 0:01:09]} 21. Qxe2 {[%clk 0:00:55.6]} 21... Qb6 {[%clk 0:00:24.4]}
22. b3 {[%clk 0:00:44.7]} 22... Bf5 {[%clk 0:00:21.7]} 23. Rxg7+ {[%clk
0:00:25.1]} 23... Kxg7 {[%clk 0:00:21]} 24. Qe5+ {[%clk 0:00:25.2]} 24... Kg8
{[%clk 0:00:18.3]} 25. Bh6 {[%clk 0:00:24.9]} 25... Rf7 {[%clk 0:00:15.2]} 26.
Bxf5 {[%clk 0:00:24.7]} 26... gxf5 {[%clk 0:00:16.1]} 27. Qg3+ {[%clk
0:00:19.3]} 27... Kh8 {[%clk 0:00:16]} 28. Bf4 {[%clk 0:00:16.2]} 28... h6
{[%clk 0:00:13.2]} 29. Qg6 {[%clk 0:00:14.9]} 29... Rg7 {[%clk 0:00:02.7]} 30.
Be5 {[%clk 0:00:14.8]} 30... Qc7 {[%clk 0:00:02.4]} 31. Qxh6+ {[%clk 0:00:14.8]}
31... Kg8 {[%clk 0:00:02.8]} 32. Bxg7 {[%clk 0:00:13.7]} 32... Qxg7 {[%clk
0:00:03.3]} 33. Qe6+ {[%clk 0:00:13.4]} 33... Qf7 {[%clk 0:00:03.7]} 34. Qe5
{[%clk 0:00:13.3]} 34... Re8 {[%clk 0:00:03.5]} 35. Qg3+ {[%clk 0:00:13.2]}
35... Qg7 {[%clk 0:00:04]} 36. Qxg7+ {[%clk 0:00:11]} 36... Kxg7 {[%clk
0:00:04.9]} 37. Rc1 {[%clk 0:00:11.3]} 37... Re2 {[%clk 0:00:04.1]} 38. Kf1
{[%clk 0:00:11.4]} 38... Re4 {[%clk 0:00:04.4]} 39. Re1 {[%clk 0:00:10.9]} 39...
Rd4 {[%clk 0:00:03.8]} 40. Ke2 {[%clk 0:00:10.3]} 40... Kf6 {[%clk 0:00:03.1]}
41. f3 {[%clk 0:00:10.5]} 41... f4 {[%clk 0:00:02.5]} 42. Rd1 {[%clk 0:00:09.5]}
42... Rb4 {[%clk 0:00:01.9]} 43. c3 {[%clk 0:00:09.2]} 43... Rb6 {[%clk
0:00:02.2]} 44. Rd4 {[%clk 0:00:08.3]} 44... Kf5 {[%clk 0:00:02.8]} 45. Rd1
{[%clk 0:00:07.6]} 45... a5 {[%clk 0:00:02.7]} 46. Kd3 {[%clk 0:00:07.6]} 46...
Ra6 {[%clk 0:00:03.6]} 47. a4 {[%clk 0:00:07.1]} 47... c5 {[%clk 0:00:03.5]} 48.
Re1 {[%clk 0:00:06.1]} 48... Rd6 {[%clk 0:00:03.8]} 49. Re7 {[%clk 0:00:05.6]}
49... b6 {[%clk 0:00:04.4]} 50. Rf7+ {[%clk 0:00:05.4]} 50... Kg5 {[%clk
0:00:04.9]} 51. Rf8 {[%clk 0:00:05.6]} 51... Re6 {[%clk 0:00:04.4]} 52. Rd8
{[%clk 0:00:05.3]} 52... Re3+ {[%clk 0:00:04.8]} 53. Kd2 {[%clk 0:00:05.7]}
53... Re5 {[%clk 0:00:05.5]} 54. Rd6 {[%clk 0:00:05.7]} 54... c4 {[%clk
0:00:05.1]} 55. Rxb6 {[%clk 0:00:05.2]} 55... cxb3 {[%clk 0:00:04.7]} 56. Rxb3
{[%clk 0:00:05.9]} 56... Re3 {[%clk 0:00:04.9]} 57. Rb5 {[%clk 0:00:05.9]} 57...
Kh4 {[%clk 0:00:05.8]} 58. Rxd5 {[%clk 0:00:05.7]} 58... Kg3 {[%clk 0:00:06.7]}
59. Rf5 {[%clk 0:00:06]} 59... Kf2 {[%clk 0:00:07.6]} 60. Rxf4 {[%clk
0:00:06.5]} 60... Re2+ {[%clk 0:00:08.1]} 61. Kd3 {[%clk 0:00:07.1]} 61... Re3+
{[%clk 0:00:08.6]} 62. Kd4 {[%clk 0:00:07.9]} 62... Re2 {[%clk 0:00:09.2]} 63.
Rg4 {[%clk 0:00:08.2]} 63... Ra2 {[%clk 0:00:09.2]} 64. Kc5 {[%clk 0:00:08.5]}
64... Rc2 {[%clk 0:00:09.5]} 65. c4 {[%clk 0:00:08.3]} 65... Rb2 {[%clk
0:00:10.1]} 66. Kc6 {[%clk 0:00:08.3]} 66... Rb4 {[%clk 0:00:10.3]} 67. c5
{[%clk 0:00:07.2]} 1-0

[Event "Early-Titled-Tuesday-Blitz-January-23-2024"]
[Site "Chess.com"]
[Date "2024.01.23"]
[Round "5"]
[White "Chxss_Khxsbu"]
[Black "Laico"]
[Result "0-1"]
[WhiteElo "1781"]
[BlackElo "2342"]
[TimeControl "180+1"]
[EndTime "8:56:39 PST"]
[Termination "Laico won by checkmate"]

1. e4 {[%clk 0:02:51.7]} 1... e6 {[%clk 0:03:00]} 2. d4 {[%clk 0:02:48.2]} 2...
d5 {[%clk 0:02:59.4]} 3. Nd2 {[%clk 0:02:48]} 3... Nf6 {[%clk 0:02:57.1]} 4. Bd3
{[%clk 0:02:45.6]} 4... c5 {[%clk 0:02:47.9]} 5. e5 {[%clk 0:02:41.9]} 5... Nfd7
{[%clk 0:02:46.5]} 6. c3 {[%clk 0:02:41.7]} 6... Nc6 {[%clk 0:02:47.1]} 7. Ngf3
{[%clk 0:02:41]} 7... cxd4 {[%clk 0:02:47.7]} 8. cxd4 {[%clk 0:02:41.5]} 8... f6
{[%clk 0:02:48.4]} 9. exf6 {[%clk 0:02:36.3]} 9... Nxf6 {[%clk 0:02:49.3]} 10.
O-O {[%clk 0:02:34.3]} 10... Bd6 {[%clk 0:02:48.1]} 11. Re1 {[%clk 0:02:34.1]}
11... O-O {[%clk 0:02:47.7]} 12. Nb3 {[%clk 0:02:33.3]} 12... Qc7 {[%clk
0:02:41.2]} 13. h3 {[%clk 0:02:29.4]} 13... e5 {[%clk 0:02:37.6]} 14. dxe5
{[%clk 0:02:24]} 14... Nxe5 {[%clk 0:02:38.5]} 15. Nxe5 {[%clk 0:02:20.6]} 15...
Bxe5 {[%clk 0:02:39.4]} 16. Bg5 {[%clk 0:02:14.6]} 16... Bxb2 {[%clk 0:02:34.4]}
17. Rb1 {[%clk 0:02:13.2]} 17... Be5 {[%clk 0:02:26.2]} 18. Bxf6 {[%clk
0:02:11.6]} 18... Bxf6 {[%clk 0:02:15.4]} 19. Qh5 {[%clk 0:02:10.2]} 19... g6
{[%clk 0:02:04.4]} 20. Qxd5+ {[%clk 0:02:08.3]} 20... Kh8 {[%clk 0:02:02.4]} 21.
Rbc1 {[%clk 0:02:03.6]} 21... Qf4 {[%clk 0:02:01.5]} 22. Qe4 {[%clk 0:01:49.8]}
22... Qd6 {[%clk 0:01:48.6]} 23. Bc4 {[%clk 0:01:31.5]} 23... Bf5 {[%clk
0:01:23.4]} 24. Qd5 {[%clk 0:01:28.2]} 24... Qb6 {[%clk 0:01:21.4]} 25. Qc5
{[%clk 0:01:24.6]} 25... Qxc5 {[%clk 0:01:14.4]} 26. Nxc5 {[%clk 0:01:23.6]}
26... Bd4 {[%clk 0:01:14.4]} 27. Bd5 {[%clk 0:01:17.1]} 27... Bxf2+ {[%clk
0:00:53]} 28. Kxf2 {[%clk 0:01:12.6]} 28... Be4+ {[%clk 0:00:53.2]} 29. Kg1
{[%clk 0:01:09.7]} 29... Bxd5 {[%clk 0:00:53.3]} 30. Rcd1 {[%clk 0:01:05.5]}
30... Bc6 {[%clk 0:00:47.6]} 31. Re7 {[%clk 0:01:03.7]} 31... Rae8 {[%clk
0:00:40.5]} 32. Rde1 {[%clk 0:01:01.7]} 32... b6 {[%clk 0:00:40.8]} 33. Na6
{[%clk 0:00:54.6]} 33... Kg8 {[%clk 0:00:24.1]} 34. Nc7 {[%clk 0:00:54.3]} 34...
Rxe7 {[%clk 0:00:24.2]} 35. Rxe7 {[%clk 0:00:52.4]} 35... Rf7 {[%clk 0:00:24.5]}
36. Rxf7 {[%clk 0:00:44.2]} 36... Kxf7 {[%clk 0:00:25.4]} 37. Na6 {[%clk
0:00:43.4]} 37... Ke6 {[%clk 0:00:21.9]} 38. Nb4 {[%clk 0:00:43.9]} 38... Bd5
{[%clk 0:00:19.5]} 39. a3 {[%clk 0:00:40.5]} 39... a5 {[%clk 0:00:19.9]} 40. Nd3
{[%clk 0:00:40]} 40... Bc4 {[%clk 0:00:19.9]} 41. Nb2 {[%clk 0:00:38.4]} 41...
Kd5 {[%clk 0:00:16.9]} 42. Kf2 {[%clk 0:00:38.3]} 42... Kc5 {[%clk 0:00:15.1]}
43. Na4+ {[%clk 0:00:37.5]} 43... Kb5 {[%clk 0:00:13.9]} 44. Nc3+ {[%clk
0:00:37.6]} 44... Kc5 {[%clk 0:00:10.7]} 45. Ke3 {[%clk 0:00:37.8]} 45... b5
{[%clk 0:00:10]} 46. Ne4+ {[%clk 0:00:37.4]} 46... Kc6 {[%clk 0:00:07.6]} 47.
Kd4 {[%clk 0:00:37.3]} 47... Bd5 {[%clk 0:00:07.3]} 48. Nf6 {[%clk 0:00:33.9]}
48... Bxg2 {[%clk 0:00:07.3]} 49. Nxh7 {[%clk 0:00:33]} 49... Bxh3 {[%clk
0:00:07.5]} 50. Ng5 {[%clk 0:00:30.8]} 50... Bf5 {[%clk 0:00:07.1]} 51. Nf7
{[%clk 0:00:26.8]} 51... Kb6 {[%clk 0:00:05.8]} 52. Ne5 {[%clk 0:00:21.6]} 52...
g5 {[%clk 0:00:05.2]} 53. Kc3 {[%clk 0:00:18.8]} 53... g4 {[%clk 0:00:04.6]} 54.
Nf7 {[%clk 0:00:11.8]} 54... g3 {[%clk 0:00:04.4]} 55. Ng5 {[%clk 0:00:12.4]}
55... Bg4 {[%clk 0:00:03.3]} 56. Ne4 {[%clk 0:00:06]} 56... g2 {[%clk
0:00:03.6]} 57. Nd2 {[%clk 0:00:02.6]} 57... g1=Q {[%clk 0:00:04.5]} 58. Ne4
{[%clk 0:00:02.6]} 58... Qe3+ {[%clk 0:00:03.3]} 59. Kc2 {[%clk 0:00:02.6]}
59... Qxe4+ {[%clk 0:00:03.7]} 60. Kb2 {[%clk 0:00:03.5]} 60... Bf5 {[%clk
0:00:03.5]} 61. Ka2 {[%clk 0:00:04]} 61... Qb1# {[%clk 0:00:03.5]} 0-1

[Event "Early-Titled-Tuesday-Blitz-January-23-2024"]
[Site "Chess.com"]
[Date "2024.01.23"]
[Round "5"]
[White "KononenkoD"]
[Black "KetiTsatsalashvili"]
[Result "0-1"]
[WhiteElo "2542"]
[BlackElo "2428"]
[TimeControl "180+1"]
[EndTime "8:56:42 PST"]
[Termination "KetiTsatsalashvili won on time"]

1. e4 {[%clk 0:02:55.1]} 1... c5 {[%clk 0:02:55.3]} 2. Nf3 {[%clk 0:02:54.8]}
2... d6 {[%clk 0:02:55.2]} 3. d4 {[%clk 0:02:55.7]} 3... cxd4 {[%clk 0:02:56]}
4. Nxd4 {[%clk 0:02:54]} 4... Nf6 {[%clk 0:02:56.5]} 5. Nc3 {[%clk 0:02:54.3]}
5... Nc6 {[%clk 0:02:56.8]} 6. Bc4 {[%clk 0:02:54.5]} 6... e6 {[%clk 0:02:56.8]}
7. Bb3 {[%clk 0:02:54.6]} 7... a6 {[%clk 0:02:56.2]} 8. O-O {[%clk 0:02:54.3]}
8... Be7 {[%clk 0:02:56.3]} 9. f4 {[%clk 0:02:53.8]} 9... O-O {[%clk 0:02:54.6]}
10. f5 {[%clk 0:02:53.9]} 10... Nxd4 {[%clk 0:02:50.2]} 11. Qxd4 {[%clk
0:02:52.6]} 11... Qc7 {[%clk 0:02:49.1]} 12. Kh1 {[%clk 0:02:52.2]} 12... b5
{[%clk 0:02:42.6]} 13. Bg5 {[%clk 0:02:48.8]} 13... Rb8 {[%clk 0:02:23.1]} 14.
a3 {[%clk 0:02:47.6]} 14... a5 {[%clk 0:02:21.1]} 15. Rad1 {[%clk 0:02:38.3]}
15... b4 {[%clk 0:02:19]} 16. axb4 {[%clk 0:02:38.1]} 16... axb4 {[%clk
0:02:14]} 17. Ne2 {[%clk 0:02:37.1]} 17... e5 {[%clk 0:02:10.8]} 18. Qd3 {[%clk
0:02:35]} 18... Bb7 {[%clk 0:02:03.2]} 19. Bxf6 {[%clk 0:02:34.7]} 19... Bxf6
{[%clk 0:02:02.8]} 20. Ng3 {[%clk 0:02:35]} 20... Be7 {[%clk 0:01:56]} 21. f6
{[%clk 0:02:34.6]} 21... Bxf6 {[%clk 0:01:32.6]} 22. Qxd6 {[%clk 0:02:34.2]}
22... Qxd6 {[%clk 0:01:30]} 23. Rxd6 {[%clk 0:02:35.1]} 23... Bg5 {[%clk
0:01:12.9]} 24. Rd7 {[%clk 0:02:28.9]} 24... Bf4 {[%clk 0:01:11.7]} 25. Bd5
{[%clk 0:02:20.7]} 25... Bxd5 {[%clk 0:01:07.9]} 26. Rxd5 {[%clk 0:02:21.6]}
26... Bxg3 {[%clk 0:01:06.9]} 27. hxg3 {[%clk 0:02:21.6]} 27... f6 {[%clk
0:01:03.7]} 28. Ra1 {[%clk 0:02:15.8]} 28... Rbc8 {[%clk 0:00:58.3]} 29. Rd2
{[%clk 0:02:14.3]} 29... Rfd8 {[%clk 0:00:53.4]} 30. Rxd8+ {[%clk 0:02:13.8]}
30... Rxd8 {[%clk 0:00:54.3]} 31. Ra4 {[%clk 0:02:13.4]} 31... Rd4 {[%clk
0:00:45.5]} 32. Kh2 {[%clk 0:02:08.7]} 32... Rxe4 {[%clk 0:00:45.8]} 33. Ra8+
{[%clk 0:02:07.3]} 33... Kf7 {[%clk 0:00:45.7]} 34. Rb8 {[%clk 0:02:07.1]} 34...
Rc4 {[%clk 0:00:44.7]} 35. b3 {[%clk 0:02:05.8]} 35... Rxc2 {[%clk 0:00:44.7]}
36. Rxb4 {[%clk 0:02:05.2]} 36... Rb2 {[%clk 0:00:45.2]} 37. Rb7+ {[%clk
0:02:04.9]} 37... Kg6 {[%clk 0:00:45.3]} 38. g4 {[%clk 0:02:04.9]} 38... e4
{[%clk 0:00:39.8]} 39. Kg3 {[%clk 0:02:04.8]} 39... e3 {[%clk 0:00:40.3]} 40.
Kf3 {[%clk 0:02:04.3]} 40... e2 {[%clk 0:00:40.4]} 41. Kf2 {[%clk 0:02:04.6]}
41... e1=Q+ {[%clk 0:00:28.5]} 42. Kxe1 {[%clk 0:02:02.7]} 42... Rxg2 {[%clk
0:00:28.3]} 43. Rb4 {[%clk 0:02:02.2]} 43... Kg5 {[%clk 0:00:26.2]} 44. Kf1
{[%clk 0:02:02.4]} 44... Rxg4 {[%clk 0:00:22.7]} 45. Rb5+ {[%clk 0:02:02.5]}
45... f5 {[%clk 0:00:20.6]} 46. b4 {[%clk 0:02:03.4]} 46... h5 {[%clk
0:00:19.5]} 47. Kf2 {[%clk 0:02:03.4]} 47... g6 {[%clk 0:00:19.5]} 48. Rb8
{[%clk 0:02:00.2]} 48... h4 {[%clk 0:00:19.4]} 49. Kf3 {[%clk 0:01:57.3]} 49...
Rg3+ {[%clk 0:00:19.8]} 50. Kf2 {[%clk 0:01:56.5]} 50... Rb3 {[%clk 0:00:20.7]}
51. b5 {[%clk 0:01:56.1]} 51... h3 {[%clk 0:00:20.2]} 52. b6 {[%clk 0:01:56.1]}
52... Kg4 {[%clk 0:00:19.6]} 53. b7 {[%clk 0:01:55.7]} 53... g5 {[%clk 0:00:20]}
54. Ke2 {[%clk 0:01:50.3]} 54... h2 {[%clk 0:00:18]} 55. Rh8 {[%clk 0:01:50.5]}
55... Rxb7 {[%clk 0:00:18]} 56. Kf1 {[%clk 0:01:49]} 56... Rb1+ {[%clk
0:00:17.5]} 57. Kg2 {[%clk 0:01:48.9]} 57... h1=Q+ {[%clk 0:00:18.2]} 58. Rxh1
{[%clk 0:01:49.7]} 58... Rxh1 {[%clk 0:00:18.8]} 59. Kxh1 {[%clk 0:01:50.5]}
59... Kf3 {[%clk 0:00:19.2]} 60. Kg1 {[%clk 0:01:50.9]} 60... Ke2 {[%clk
0:00:20.1]} 61. Kg2 {[%clk 0:01:50.7]} 61... f4 {[%clk 0:00:20.5]} 62. Kh3
{[%clk 0:01:50.9]} 62... f3 {[%clk 0:00:20.8]} 63. Kg4 {[%clk 0:01:51.8]} 63...
f2 {[%clk 0:00:21]} 64. Kg3 {[%clk 0:01:52.7]} 64... f1=Q {[%clk 0:00:18.8]} 65.
Kg4 {[%clk 0:01:53.6]} 65... Qf3+ {[%clk 0:00:17.2]} 66. Kxg5 {[%clk 0:01:53.2]}
66... Ke3 {[%clk 0:00:17.3]} 67. Kg6 {[%clk 0:01:53.8]} 67... Qf4 {[%clk
0:00:17.8]} 68. Kh5 {[%clk 0:01:54]} 68... Ke4 {[%clk 0:00:18.7]} 69. Kg6 {[%clk
0:01:54.2]} 69... Qf5+ {[%clk 0:00:18.4]} 70. Kh6 {[%clk 0:01:55.1]} 70... Qg4
{[%clk 0:00:18.3]} 71. Kh7 {[%clk 0:01:55.2]} 71... Qg5 {[%clk 0:00:18.8]} 72.
Kh8 {[%clk 0:01:56.1]} 72... Kf5 {[%clk 0:00:19.4]} 0-1